{"text_format":"3","workbook":"xlsx","n_sheets":6,"sheets":["Начало","Табло","Разходи и приходи","Отчет за бюджета","Списъци с данни","Обобщена таблица на категория"],"not_rendered":{"charts":3,"defined_names":23,"pivot_tables":2},"read":"whole","date_system":"1900"}

{"sheet":"Начало","index":0,"n_rows":8,"n_cols":2,"rows_kept":8}
[null,"Относно шаблона"]
[null,"Използвайте този шаблон, за да създадете полумесечен домашен бюджет."]
[null,"Работният лист на таблото съдържа диаграми за ежемесечни и годишни общи суми и таблица за приходи и разходи за две седмици."]
[null,"Въведете категории в работния лист \"Списъци с данни\" и стойностите в работния лист \"Приходи и разходи\"."]
[null,"Обновявете обобщената таблица в работния лист \"Отчет за бюджета\"."]
[null,"Забележка:"]
[null,"Предоставени са допълнителни инструкции в колона A във всички работни листове. Този текст е скрит нарочно. За да премахнете текста, изберете колона А, след което изберете DELETE. "]
[null,"За да научите повече за таблиците, натиснете SHIFT и след това F10 в таблица, изберете опцията ТАБЛИЦА, след което изберете АЛТЕРНАТИВЕН ТЕКСТ. За обобщените таблици натиснете SHIFT и след това F10 в таблица, изберете ОПЦИИ ЗА ОБОБЩЕНА ТАБЛИЦА, след което изберете раздела АЛТЕРНАТИВЕН ТЕКСТ."]

{"sheet":"Табло","index":1,"n_rows":12,"n_cols":15,"rows_kept":12,"merged":[[0,1,0,13],[1,2,1,7]]}
["Създаване на табло за месечни и годишни общи суми и приходи и разходи за  две седмици в този работен лист. Полезни инструкции как да използвате този работен лист, можете да намерите в клетките в тази колона. Заглавието на тази работна книга е в клетката вдясно, а заглавието на работния лист е в клетка O1.","Полумесечен домашен бюджет",{"$nulls":12},"ТАБЛО"]
["Изберете плъзгача в клетка C2, за да промените месеца в клетката отдясно, а за да промените годината в клетка I2, изберете плъзгача в клетка J2.",{"$f":"CHOOSE(НомерМесец,\"ЯНУАРИ\",\"ФЕВРУАРИ\",\"МАРТ\",\"АПРИЛ\",\"МАЙ\",\"ЮНИ\",\"ЮЛИ\",\"АВГУСТ\",\"СЕПТЕМВРИ\",\"ОКТОМВРИ\",\"НОЕМВРИ\",\"ДЕКЕМВРИ\")","v":"ДЕКЕМВРИ"},12,{"$nulls":5},2022]
["Етикетът \"Общи суми за месеца\" е в клетка вдясно, а етикет \"Годишни общи суми\" в клетка I3.","ОБЩИ СУМИ ЗА МЕСЕЦА",{"$nulls":6},"ГОДИШНИ ОБЩИ СУМИ"]
["Линейна диаграма, която сравнява общите суми за месечните приходи с общите суми за месечните разходи, е в клетка C4, а диаграмата, сравняваща общите суми за годишните приходи с годишните разходи, е в клетка J4. Следващата инструкция е в клетка A8.","ПРИХОД",null,{"$f":"ОбщоМесечниРазходи","v":{"v":0,"d":"0 лв."}},{"$nulls":4},"ПРИХОД",null,null,{"$f":"ОбщоГодишниРазходи","v":{"v":10742,"d":"10,742 лв."}}]
[null,"РАЗНОСКИ",null,{"$f":"ОбщоМесечниПриходи","v":{"v":0,"d":"0 лв."}},{"$nulls":4},"РАЗНОСКИ",null,null,{"$f":"Годишни_Междинни_суми","v":{"v":13200,"d":"13,200 лв."}}]
[]
[]
["Таблицата на таблото, която започва от клетката вдясно, се актуализира автоматично.","Категория","ЯНУАРИ","ФЕВРУАРИ","МАРТ","АПРИЛ","МАЙ","ЮНИ","ЮЛИ","АВГУСТ","СЕПТЕМВРИ","ОКТОМВРИ","НОЕМВРИ","ДЕКЕМВРИ","Блещукаща линия"]
[null,"Приходи 1-15",{"$f":"SUMIFS(Приход[СУМА],Приход[ДАТА],\"<=\"&ДатаСреда,Приход[ДАТА],\">=\"&ДатаНачало)","v":{"v":0,"d":"0.00 лв."}},{"$f":"SUMIFS(Приход[СУМА],Приход[ДАТА],\"<=\"&ДатаСреда,Приход[ДАТА],\">=\"&ДатаНачало)","v":{"v":0,"d":"0.00 лв."}},{"$f":"SUMIFS(Приход[СУМА],Приход[ДАТА],\"<=\"&ДатаСреда,Приход[ДАТА],\">=\"&ДатаНачало)","v":{"v":1300,"d":"1,300.00 лв."}},{"$f":"SUMIFS(Приход[СУМА],Приход[ДАТА],\"<=\"&ДатаСреда,Приход[ДАТА],\">=\"&ДатаНачало)","v":{"v":5700,"d":"5,700.00 лв."}},{"$f":"SUMIFS(Приход[СУМА],Приход[ДАТА],\"<=\"&ДатаСреда,Приход[ДАТА],\">=\"&ДатаНачало)","v":{"v":500,"d":"500.00 лв."}},{"$f":"SUMIFS(Приход[СУМА],Приход[ДАТА],\"<=\"&ДатаСреда,Приход[ДАТА],\">=\"&ДатаНачало)","v":{"v":0,"d":"0.00 лв."}},{"$f":"SUMIFS(Приход[СУМА],Приход[ДАТА],\"<=\"&ДатаСреда,Приход[ДАТА],\">=\"&ДатаНачало)","v":{"v":0,"d":"0.00 лв."}},{"$f":"SUMIFS(Приход[СУМА],Приход[ДАТА],\"<=\"&ДатаСреда,Приход[ДАТА],\">=\"&ДатаНачало)","v":{"v":0,"d":"0.00 лв."}},{"$f":"SUMIFS(Приход[СУМА],Приход[ДАТА],\"<=\"&ДатаСреда,Приход[ДАТА],\">=\"&ДатаНачало)","v":{"v":0,"d":"0.00 лв."}},{"$f":"SUMIFS(Приход[СУМА],Приход[ДАТА],\"<=\"&ДатаСреда,Приход[ДАТА],\">=\"&ДатаНачало)","v":{"v":0,"d":"0.00 лв."}},{"$f":"SUMIFS(Приход[СУМА],Приход[ДАТА],\"<=\"&ДатаСреда,Приход[ДАТА],\">=\"&ДатаНачало)","v":{"v":0,"d":"0.00 лв."}},{"$f":"SUMIFS(Приход[СУМА],Приход[ДАТА],\"<=\"&ДатаСреда,Приход[ДАТА],\">=\"&ДатаНачало)","v":{"v":0,"d":"0.00 лв."}}]
[null,"Приходи от 16 до края на месеца",{"$f":"SUMIFS(Приход[СУМА],Приход[ДАТА],\"<=\"&ДатаКрай,Приход[ДАТА],\">=\"&ДатаСреда+1)","v":{"v":0,"d":"0.00 лв."}},{"$f":"SUMIFS(Приход[СУМА],Приход[ДАТА],\"<=\"&ДатаКрай,Приход[ДАТА],\">=\"&ДатаСреда+1)","v":{"v":0,"d":"0.00 лв."}},{"$f":"SUMIFS(Приход[СУМА],Приход[ДАТА],\"<=\"&ДатаКрай,Приход[ДАТА],\">=\"&ДатаСреда+1)","v":{"v":3100,"d":"3,100.00 лв."}},{"$f":"SUMIFS(Приход[СУМА],Приход[ДАТА],\"<=\"&ДатаКрай,Приход[ДАТА],\">=\"&ДатаСреда+1)","v":{"v":2600,"d":"2,600.00 лв."}},{"$f":"SUMIFS(Приход[СУМА],Приход[ДАТА],\"<=\"&ДатаКрай,Приход[ДАТА],\">=\"&ДатаСреда+1)","v":{"v":0,"d":"0.00 лв."}},{"$f":"SUMIFS(Приход[СУМА],Приход[ДАТА],\"<=\"&ДатаКрай,Приход[ДАТА],\">=\"&ДатаСреда+1)","v":{"v":0,"d":"0.00 лв."}},{"$f":"SUMIFS(Приход[СУМА],Приход[ДАТА],\"<=\"&ДатаКрай,Приход[ДАТА],\">=\"&ДатаСреда+1)","v":{"v":0,"d":"0.00 лв."}},{"$f":"SUMIFS(Приход[СУМА],Приход[ДАТА],\"<=\"&ДатаКрай,Приход[ДАТА],\">=\"&ДатаСреда+1)","v":{"v":0,"d":"0.00 лв."}},{"$f":"SUMIFS(Приход[СУМА],Приход[ДАТА],\"<=\"&ДатаКрай,Приход[ДАТА],\">=\"&ДатаСреда+1)","v":{"v":0,"d":"0.00 лв."}},{"$f":"SUMIFS(Приход[СУМА],Приход[ДАТА],\"<=\"&ДатаКрай,Приход[ДАТА],\">=\"&ДатаСреда+1)","v":{"v":0,"d":"0.00 лв."}},{"$f":"SUMIFS(Приход[СУМА],Приход[ДАТА],\"<=\"&ДатаКрай,Приход[ДАТА],\">=\"&ДатаСреда+1)","v":{"v":0,"d":"0.00 лв."}},{"$f":"SUMIFS(Приход[СУМА],Приход[ДАТА],\"<=\"&ДатаКрай,Приход[ДАТА],\">=\"&ДатаСреда+1)","v":{"v":0,"d":"0.00 лв."}}]
[null,"Разходи 1–15",{"$f":"SUMIFS(Разноски[СУМА],Разноски[ДАТА],\"<=\"&ДатаСреда+1,Разноски[ДАТА],\">=\"&ДатаНачало)","v":{"v":0,"d":"0.00 лв."}},{"$f":"SUMIFS(Разноски[СУМА],Разноски[ДАТА],\"<=\"&ДатаСреда+1,Разноски[ДАТА],\">=\"&ДатаНачало)","v":{"v":0,"d":"0.00 лв."}},{"$f":"SUMIFS(Разноски[СУМА],Разноски[ДАТА],\"<=\"&ДатаСреда+1,Разноски[ДАТА],\">=\"&ДатаНачало)","v":{"v":150,"d":"150.00 лв."}},{"$f":"SUMIFS(Разноски[СУМА],Разноски[ДАТА],\"<=\"&ДатаСреда+1,Разноски[ДАТА],\">=\"&ДатаНачало)","v":{"v":225,"d":"225.00 лв."}},{"$f":"SUMIFS(Разноски[СУМА],Разноски[ДАТА],\"<=\"&ДатаСреда+1,Разноски[ДАТА],\">=\"&ДатаНачало)","v":{"v":2642,"d":"2,642.00 лв."}},{"$f":"SUMIFS(Разноски[СУМА],Разноски[ДАТА],\"<=\"&ДатаСреда+1,Разноски[ДАТА],\">=\"&ДатаНачало)","v":{"v":0,"d":"0.00 лв."}},{"$f":"SUMIFS(Разноски[СУМА],Разноски[ДАТА],\"<=\"&ДатаСреда+1,Разноски[ДАТА],\">=\"&ДатаНачало)","v":{"v":0,"d":"0.00 лв."}},{"$f":"SUMIFS(Разноски[СУМА],Разноски[ДАТА],\"<=\"&ДатаСреда+1,Разноски[ДАТА],\">=\"&ДатаНачало)","v":{"v":0,"d":"0.00 лв."}},{"$f":"SUMIFS(Разноски[СУМА],Разноски[ДАТА],\"<=\"&ДатаСреда+1,Разноски[ДАТА],\">=\"&ДатаНачало)","v":{"v":0,"d":"0.00 лв."}},{"$f":"SUMIFS(Разноски[СУМА],Разноски[ДАТА],\"<=\"&ДатаСреда+1,Разноски[ДАТА],\">=\"&ДатаНачало)","v":{"v":0,"d":"0.00 лв."}},{"$f":"SUMIFS(Разноски[СУМА],Разноски[ДАТА],\"<=\"&ДатаСреда+1,Разноски[ДАТА],\">=\"&ДатаНачало)","v":{"v":0,"d":"0.00 лв."}},{"$f":"SUMIFS(Разноски[СУМА],Разноски[ДАТА],\"<=\"&ДатаСреда+1,Разноски[ДАТА],\">=\"&ДатаНачало)","v":{"v":0,"d":"0.00 лв."}}]
[null,"Разходи от 16 до края на месеца",{"$f":"SUMIFS(Разноски[СУМА],Разноски[ДАТА],\"<=\"&ДатаКрай,Разноски[ДАТА],\">=\"&ДатаСреда+1)","v":{"v":0,"d":"0.00 лв."}},{"$f":"SUMIFS(Разноски[СУМА],Разноски[ДАТА],\"<=\"&ДатаКрай,Разноски[ДАТА],\">=\"&ДатаСреда+1)","v":{"v":1075,"d":"1,075.00 лв."}},{"$f":"SUMIFS(Разноски[СУМА],Разноски[ДАТА],\"<=\"&ДатаКрай,Разноски[ДАТА],\">=\"&ДатаСреда+1)","v":{"v":5200,"d":"5,200.00 лв."}},{"$f":"SUMIFS(Разноски[СУМА],Разноски[ДАТА],\"<=\"&ДатаКрай,Разноски[ДАТА],\">=\"&ДатаСреда+1)","v":{"v":1450,"d":"1,450.00 лв."}},{"$f":"SUMIFS(Разноски[СУМА],Разноски[ДАТА],\"<=\"&ДатаКрай,Разноски[ДАТА],\">=\"&ДатаСреда+1)","v":{"v":0,"d":"0.00 лв."}},{"$f":"SUMIFS(Разноски[СУМА],Разноски[ДАТА],\"<=\"&ДатаКрай,Разноски[ДАТА],\">=\"&ДатаСреда+1)","v":{"v":0,"d":"0.00 лв."}},{"$f":"SUMIFS(Разноски[СУМА],Разноски[ДАТА],\"<=\"&ДатаКрай,Разноски[ДАТА],\">=\"&ДатаСреда+1)","v":{"v":0,"d":"0.00 лв."}},{"$f":"SUMIFS(Разноски[СУМА],Разноски[ДАТА],\"<=\"&ДатаКрай,Разноски[ДАТА],\">=\"&ДатаСреда+1)","v":{"v":0,"d":"0.00 лв."}},{"$f":"SUMIFS(Разноски[СУМА],Разноски[ДАТА],\"<=\"&ДатаКрай,Разноски[ДАТА],\">=\"&ДатаСреда+1)","v":{"v":0,"d":"0.00 лв."}},{"$f":"SUMIFS(Разноски[СУМА],Разноски[ДАТА],\"<=\"&ДатаКрай,Разноски[ДАТА],\">=\"&ДатаСреда+1)","v":{"v":0,"d":"0.00 лв."}},{"$f":"SUMIFS(Разноски[СУМА],Разноски[ДАТА],\"<=\"&ДатаКрай,Разноски[ДАТА],\">=\"&ДатаСреда+1)","v":{"v":0,"d":"0.00 лв."}},{"$f":"SUMIFS(Разноски[СУМА],Разноски[ДАТА],\"<=\"&ДатаКрай,Разноски[ДАТА],\">=\"&ДатаСреда+1)","v":{"v":0,"d":"0.00 лв."}}]

{"sheet":"Разходи и приходи","index":2,"n_rows":36,"n_cols":9,"rows_kept":36,"merged":[[0,1,0,6],[0,7,0,8]]}
["Създайте списък с приходи и разходи в този работен лист. Полезни инструкции как да използвате този работен лист, можете да намерите в клетките в тази колона. Заглавието на работната книга е в клетката вдясно, а заглавието на работния лист е в клетка H1.",{"$f":"Semi_Monthly_Home_Budget_Title","v":"Полумесечен домашен бюджет"},{"$nulls":5},"ПРИХОДИ И РАЗХОДИ"]
["Етикетът за приходи е в клетката вдясно, а етикет \"Разходи\" в клетка F2.","ПРИХОД",{"$nulls":3},"РАЗНОСКИ"]
["Въведете подробности в таблицата \"Приходи\", започвайки от клетката отдясно и в таблицата \"Разходи\", започвайки от клетка F3.","ДАТА","ОПИСАНИЕ","СУМА",null,"ДАТА","КАТЕГОРИЯ","ОПИСАНИЕ","СУМА"]
[null,{"$f":"TODAY()","v":"2022-05-13"},"Бонус",{"v":500,"d":"500.00 лв."},null,{"$f":"TODAY()","v":"2022-05-13"},"Медицински","Застраховка",{"v":500,"d":"500.00 лв."}]
[null,{"$f":"TODAY()-14","v":"2022-04-29"},"Заплата на Христо",{"v":1300,"d":"1,300.00 лв."},null,{"$f":"TODAY()-7","v":"2022-05-06"},"Домакинство","Ипотека",{"v":1000,"d":"1,000.00 лв."}]
[null,{"$f":"TODAY()-14","v":"2022-04-29"},"Заплата на Яне",{"v":1300,"d":"1,300.00 лв."},null,"2022-05-06","Домакинство","Електричество",{"v":100,"d":"100.00 лв."}]
[null,{"$f":"TODAY()-28","v":"2022-04-15"},"Заплата на Христо",{"v":1500,"d":"1,500.00 лв."},null,"2022-05-06","Домакинство","Вода/канализация",{"v":50,"d":"50.00 лв."}]
[null,{"$f":"TODAY()-28","v":"2022-04-15"},"Заплата на Яне",{"v":1600,"d":"1,600.00 лв."},null,"2022-05-06","Домакинство","Боклук",{"v":25,"d":"25.00 лв."}]
[null,{"$f":"TODAY()-42","v":"2022-04-01"},"Заплата на Христо",{"v":1300,"d":"1,300.00 лв."},null,"2022-05-06","Домакинство","Мобилен телефон",{"v":100,"d":"100.00 лв."}]
[null,{"$f":"TODAY()-42","v":"2022-04-01"},"Заплата на Яне",{"v":1300,"d":"1,300.00 лв."},null,"2022-05-06","Домакинство","Мобилен телефон",{"v":30,"d":"30.00 лв."}]
[null,{"$f":"TODAY()-56","v":"2022-03-18"},"Заплата на Христо",{"v":1500,"d":"1,500.00 лв."},null,"2022-05-06","Домакинство","Ипотека",{"v":50,"d":"50.00 лв."}]
[null,{"$f":"TODAY()-56","v":"2022-03-18"},"Заплата на Яне",{"v":1600,"d":"1,600.00 лв."},null,"2022-05-06","Домакинство","Мобилен телефон",{"v":50,"d":"50.00 лв."}]
[null,{"$f":"TODAY()-70","v":"2022-03-04"},"Заплата на Христо",{"v":1300,"d":"1,300.00 лв."},null,{"$f":"TODAY()-7","v":"2022-05-06"},"Домакинство","Мобилен телефон",{"v":25,"d":"25.00 лв."}]
[{"$nulls":5},{"$f":"TODAY()-8","v":"2022-05-05"},"Домакинство","Електричество",{"v":100,"d":"100.00 лв."}]
[{"$nulls":5},{"$f":"TODAY()-9","v":"2022-05-04"},"Развлечения","Филми",{"v":37,"d":"37.00 лв."}]
[{"$nulls":5},{"$f":"TODAY()-10","v":"2022-05-03"},"Храна","Хранителни стоки",{"v":350,"d":"350.00 лв."}]
[{"$nulls":5},{"$f":"TODAY()-11","v":"2022-05-02"},"Храна","Заведения",{"v":75,"d":"75.00 лв."}]
[{"$nulls":5},{"$f":"TODAY()-12","v":"2022-05-01"},"Деца","Пари за обяд",{"v":150,"d":"150.00 лв."}]
[{"$nulls":5},{"$f":"TODAY()-13","v":"2022-04-30"},"Инвестиционни сметки","Спестявания",{"v":250,"d":"250.00 лв."}]
[{"$nulls":5},{"$f":"TODAY()-14","v":"2022-04-29"},"Инвестиционни сметки","Инвестиционна сметка",{"v":250,"d":"250.00 лв."}]
[{"$nulls":5},{"$f":"TODAY()-15","v":"2022-04-28"},"Лични","Здраве/фитнес клуб",{"v":100,"d":"100.00 лв."}]
[{"$nulls":5},{"$f":"TODAY()-16","v":"2022-04-27"},"Домашни_любимци","Храна",{"v":50,"d":"50.00 лв."}]
[{"$nulls":5},{"$f":"TODAY()-20","v":"2022-04-23"},"Домашни_любимци","Поддържане",{"v":50,"d":"50.00 лв."}]
[{"$nulls":5},{"$f":"TODAY()-20","v":"2022-04-23"},"Домашни_любимци","Други",{"v":50,"d":"50.00 лв."}]
[{"$nulls":5},{"$f":"TODAY()-25","v":"2022-04-18"},"Транспорт","Плащане за кола 1 ",{"v":300,"d":"300.00 лв."}]
[{"$nulls":5},{"$f":"TODAY()-25","v":"2022-04-18"},"Транспорт","Плащане за кола 2 ",{"v":350,"d":"350.00 лв."}]
[{"$nulls":5},{"$f":"TODAY()-25","v":"2022-04-18"},"Транспорт","Застраховка на кола",{"v":50,"d":"50.00 лв."}]
[{"$nulls":5},{"$f":"TODAY()-30","v":"2022-04-13"},"Транспорт","Гориво",{"v":50,"d":"50.00 лв."}]
[{"$nulls":5},{"$f":"TODAY()-31","v":"2022-04-12"},"Транспорт","Гориво",{"v":25,"d":"25.00 лв."}]
[{"$nulls":5},{"$f":"TODAY()-42","v":"2022-04-01"},"Транспорт","Плащане за кола 2 ",{"v":150,"d":"150.00 лв."}]
[{"$nulls":5},{"$f":"TODAY()-45","v":"2022-03-29"},"Домакинство","Ипотека",{"v":5000,"d":"5,000.00 лв."}]
[{"$nulls":5},{"$f":"TODAY()-50","v":"2022-03-24"},"Домакинство","Електричество",{"v":200,"d":"200.00 лв."}]
[{"$nulls":5},{"$f":"TODAY()-65","v":"2022-03-09"},"Домакинство","Мобилен телефон",{"v":100,"d":"100.00 лв."}]
[{"$nulls":5},{"$f":"TODAY()-70","v":"2022-03-04"},"Домакинство","Боклук",{"v":50,"d":"50.00 лв."}]
[{"$nulls":5},{"$f":"TODAY()-75","v":"2022-02-27"},"Домакинство","Ипотека",{"v":1000,"d":"1,000.00 лв."}]
[{"$nulls":5},{"$f":"TODAY()-78","v":"2022-02-24"},"Развлечения","Филми",{"v":75,"d":"75.00 лв."}]

{"sheet":"Отчет за бюджета","index":3,"n_rows":26,"n_cols":6,"rows_kept":26,"merged":[[0,1,0,4],[1,1,1,3],[4,3,4,5]]}
["Създаване на отчет за бюджета в този работен лист. Полезни инструкции как да използвате този работен лист, можете да намерите в клетките в тази колона. Заглавието на работната книга е в клетката вдясно, а заглавието на работния лист в клетка F1.",{"$f":"Semi_Monthly_Home_Budget_Title","v":"Полумесечен домашен бюджет"},{"$nulls":3},"ОТЧЕТ ЗА БЮДЖЕТА"]
["Изберете \"Години\", \"Тримесечия\", \"Месеци\" или \"Дни\" и използвайте плъзгача в клетката вдясно, за да получите обобщената таблица за разходите за избрания период. Сегментаторът по категория, който филтрира данните на обобщената таблица, е в клетка E2, а сегментатор \"Описание\" в клетка F2.","Времевата линия за филтриране е в тази клетка.",null,null,"Сегментатор за филтриране на данни на обобщена таблица, базирани на \"Категория\", е в тази клетка.","Сегментатор за филтриране на данни на обобщена таблица, базирани на \"Описание\", е в тази клетка."]
["Съветът е в клетката вдясно.","Натиснете Shift+F10 в обобщената таблица \"Разходи\" и след това изберете Обнови, за да актуализирате данните в този лист, или изберете Обнови под Раздел \"Анализиране\"."]
["Етикетът за разходи е в клетката вдясно.","РАЗНОСКИ"]
["Обобщената таблица, показваща разходите, започва в клетката отдясно. Етикетът \"Общи суми за категория\" е в клетка D4.","Етикети на редове","Сума от СУМА","ОБЩИ СУМИ ЗА КАТЕГОРИЯ"]
["Кръговата диаграма, която сравнява общата сума за всяка категория, е в клетка D6.","Плащане за кола 1 ",{"v":300,"d":"300.00 лв."}]
[null,"Плащане за кола 2 ",{"v":500,"d":"500.00 лв."}]
[null,"Боклук",{"v":75,"d":"75.00 лв."}]
[null,"Вода/канализация",{"v":50,"d":"50.00 лв."}]
[null,"Гориво",{"v":75,"d":"75.00 лв."}]
[null,"Други",{"v":50,"d":"50.00 лв."}]
[null,"Електричество",{"v":400,"d":"400.00 лв."}]
[null,"Заведения",{"v":75,"d":"75.00 лв."}]
[null,"Застраховка",{"v":500,"d":"500.00 лв."}]
[null,"Застраховка на кола",{"v":50,"d":"50.00 лв."}]
[null,"Здраве/фитнес клуб",{"v":100,"d":"100.00 лв."}]
[null,"Инвестиционна сметка",{"v":250,"d":"250.00 лв."}]
[null,"Ипотека",{"v":7050,"d":"7,050.00 лв."}]
[null,"Мобилен телефон",{"v":305,"d":"305.00 лв."}]
[null,"Пари за обяд",{"v":150,"d":"150.00 лв."}]
[null,"Поддържане",{"v":50,"d":"50.00 лв."}]
[null,"Спестявания",{"v":250,"d":"250.00 лв."}]
[null,"Филми",{"v":112,"d":"112.00 лв."}]
[null,"Храна",{"v":50,"d":"50.00 лв."}]
[null,"Хранителни стоки",{"v":350,"d":"350.00 лв."}]
[null,"Обща сума",{"v":10742,"d":"10,742.00 лв."}]

{"sheet":"Списъци с данни","index":4,"n_rows":8,"n_cols":13,"rows_kept":8,"merged":[[0,1,0,11]]}
["Въведете данни за категорията в този работен лист, за да попълните падащите списъци в таблицата \"Разходи\" в работния лист \"Разходи и приходи\". Променете имената или описанията на категориите под всяка категория, за да актуализирате списъците. Полезни инструкции как да използвате този работен лист, можете да намерите в клетките в тази колона. Заглавието на работната книга е в клетката вдясно, а заглавието на работния лист в клетка M1.",{"$f":"Semi_Monthly_Home_Budget_Title","v":"Полумесечен домашен бюджет"},{"$nulls":10},"СПИСЪЦИ С ДАННИ"]
["Съветът е в клетката вдясно.","НАСТРОЙКА         Данните за категорията по-долу попълват падащите списъци в таблицата \"Разходи\" в листа \"Разходи и приходи\". Променете имената на категориите или описанията под всяка категория, за да актуализирате списъците."]
["Въведете или променете имената или описанията на категориите под всяка категория в таблицата, започвайки от клетката отдясно.","Домакинство","Развлечения","Храна","Подаръци/Дарения","Деца","Инвестиционни сметки","Медицински","Други","Лични","Домашни_любимци","Данъци/юридически","Транспорт"]
[null,"Ипотека","Филми","Хранителни стоки","Благотворителност 1","Дрехи","IRA","Лекар/клиника","Други","Облекло","Храна","Държавни","Плащане за кола 1 "]
[null,"Електричество","Видео/филми","Заведения","Благотворителност 2","Играчки/игри","Спестявания","Застраховка","Членски внос в организации","Коса/нокти","Консумативи","Областен","Плащане за кола 2 "]
[null,"Вода/Канализация","Музика",null,"Благотворителност 3","Пари за обяд","Текуща разплащателна",null,null,"Химическо чистене","Медицински","Местен","Застраховка на кола"]
[null,"Боклук","Театри/Театър",null,"Подарък","Разноски/такси","Пенсиониране",null,null,"Здраве/фитнес клуб","Поддържане","Други","Лицензиране/регистрация"]
[null,"Мобилен телефон","Спортни събития",null,null,"Училищни пособия","Инвестиционна сметка",null,null,"Пазаруване","Други","Адвокат","Гориво"]

{"sheet":"Обобщена таблица на категория","index":5,"n_rows":13,"n_cols":13,"rows_kept":13,"hidden":true}
[null,"Полумесечен домашен бюджет",{"$nulls":10},"ОБОБЩЕНА ТАБЛИЦА НА КАТЕГОРИЯ"]
[null,"Тази обобщена таблица е източникът на данни за обобщената диаграма \"Общи суми на категориите\" в отчета за бюджет. "]
[null,"Етикети на редове","Сума от СУМА"]
[null,"Деца",{"v":150,"d":"150 лв."}]
[null,"Домашни_любимци",{"v":150,"d":"150 лв."}]
[null,"Инвестиционни сметки",{"v":500,"d":"500 лв."}]
[null,"Домакинство",{"v":7880,"d":"7,880 лв."}]
[null,"Лични",{"v":100,"d":"100 лв."}]
[null,"Медицински",{"v":500,"d":"500 лв."}]
[null,"Развлечения",{"v":112,"d":"112 лв."}]
[null,"Транспорт",{"v":925,"d":"925 лв."}]
[null,"Храна",{"v":425,"d":"425 лв."}]
[null,"Обща сума",{"v":10742,"d":"10,742 лв."}]